fUST/lending_fUST_20250720
["ID","MTS","AMOUNT","RATE_DAILY","PERIOD"]
[373488682,1753020669559,-460.0,0.00019726,2]
[373488683,1753020669569,-654.51,0.00019726,2]
[373488684,1753020669579,-460.0,0.00019726,2]
[373488685,1753020669589,-566.01,0.00019726,2]
[373488686,1753020669600,-460.0,0.00019726,2]
[373488687,1753020669611,-1000.0,0.00019727,2]
[373488688,1753020669621,-300.35007006,0.00019727,2]
[373488689,1753020669631,-500.0,0.00019727,2]
[373488690,1753020669640,-501.90140821,0.00019727,2]
[373488691,1753020669650,-151.0,0.00019727,2]
[373488692,1753020669660,-151.0,0.00019727,2]
[373488693,1753020669671,-151.0,0.00019727,2]
[373488694,1753020669682,-151.847431,0.00019728,2]
[373488695,1753020669691,-151.0,0.00019728,2]
[373488696,1753020669701,-500.0,0.00019737,2]
[373488697,1753020669710,-1000.0,0.00019758,2]
[373488698,1753020669722,-519.62030832,0.00019758,2]
[373488699,1753020669732,-500.0,0.00019758,2]
[373488700,1753020669742,-501.80415761,0.00019758,2]
[373488701,1753020669752,-501.11000924,0.00019758,2]
[373488702,1753020669766,-1075.75147067,0.00019758,2]
[373488703,1753020669776,-500.90331733,0.00019769,2]
[373488704,1753020669786,-501.18180365,0.00019769,2]
[373488705,1753020669799,-500.88694253,0.00019769,2]
[373488706,1753020669809,-606.86677499,0.00019769,2]
[373488707,1753020669818,-501.45215473,0.00019769,2]
[373488708,1753020669827,-500.0,0.00019769,2]
[373488709,1753020669838,-500.0,0.00019769,2]
[373488710,1753020669847,-151.0,0.00019792,2]
[373488711,1753020669857,-500.0,0.00019792,2]
[373488712,1753020669867,-151.0,0.00019792,2]
[373488713,1753020669877,-500.0,0.00019792,2]
[373488714,1753020669887,-151.0,0.00019792,2]
[373488715,1753020669897,-151.0,0.00019792,2]
[373488716,1753020669906,-203.19342844,0.00019792,2]
[373488717,1753020669916,-151.0,0.00019792,2]
[373488718,1753020669926,-151.0,0.00019792,2]
[373488719,1753020669936,-151.0,0.00019792,2]
[373488720,1753020669946,-151.0,0.00019792,2]
[373488721,1753020669955,-298.045214,0.00019792,2]
[373488722,1753020670073,-298.045214,0.00019792,2]
[373488723,1753020670083,-500.0,0.00019792,2]
[373488724,1753020670092,-500.0,0.00019792,2]
[373488725,1753020670102,-151.0,0.00019792,2]
[373488726,1753020670111,-500.0,0.00019792,2]
[373488727,1753020670120,-151.0,0.00019792,2]
[373488728,1753020670130,-464.0,0.00019792,2]
[373488729,1753020670139,-151.0,0.00019792,2]
[373488730,1753020670149,-500.0,0.00019792,2]
[373488731,1753020670158,-151.0,0.00019792,2]
[373488732,1753020670167,-151.0,0.00019792,2]
[373488733,1753020670176,-151.18163222,0.00019792,2]
[373488734,1753020670186,-151.0,0.00019792,2]
[373488735,1753020670195,-151.0,0.00019792,2]
[373488736,1753020670205,-151.0,0.00019792,2]
[373488737,1753020670215,-151.0,0.00019792,2]
[373488738,1753020670224,-151.0,0.00019792,2]
[373488739,1753020670233,-500.0,0.00019792,2]
[373488740,1753020670244,-5225.68678797,0.00019831,2]
[373488741,1753020670254,-500.0,0.00019873,2]
[373488742,1753020670264,-500.0,0.00019873,2]
[373488743,1753020670274,-500.0,0.00019873,2]
[373488744,1753020670284,-160.00964404,0.00019873,2]
[373488745,1753020670293,-502.06587387,0.00019873,2]
[373488746,1753020670303,-158.1957331,0.00019873,2]
[373488747,1753020670312,-500.0,0.00019873,2]
[373488748,1753020670322,-370000.0,0.000199,2]
[373488749,1753020670331,-151.0,0.000199,2]
[373488750,1753020670342,-151.0,0.000199,2]
[373488751,1753020670351,-425.154817,0.000199,2]
[373488752,1753020670360,-151.0,0.000199,2]
[373488753,1753020670370,-224.761876,0.000199,2]
[373488754,1753020670379,-151.0,0.000199,2]
[373488755,1753020670388,-224.761876,0.000199,2]
[373488756,1753020670398,-151.0,0.000199,2]
[373488757,1753020670407,-151.0,0.000199,2]
[373488758,1753020670416,-151.0,0.000199,2]
[373488759,1753020670426,-151.0,0.000199,2]
[373488760,1753020670436,-900.186198,0.000199,2]
[373488761,1753020670450,-258.16249,0.000199,2]
[373488762,1753020670460,-151.0,0.000199,2]
[373488763,1753020670469,-151.0,0.000199,2]
[373488764,1753020670479,-151.0,0.000199,2]
[373488765,1753020670488,-151.0,0.000199,2]
[373488766,1753020670498,-151.0,0.000199,2]
[373488767,1753020670507,-217.935232,0.000199,2]
[373488768,1753020670517,-217.935232,0.000199,2]
[373488769,1753020670526,-194.185857,0.000199,2]
[373488770,1753020670535,-194.185857,0.000199,2]
[373488772,1753020670545,-569.831812,0.000199,2]
[373488773,1753020670554,-569.831812,0.000199,2]
[373488774,1753020670563,-151.0,0.000199,2]
[373488775,1753020670572,-298.045214,0.000199,2]
[373488776,1753020670581,-298.045214,0.000199,2]
[373488777,1753020670590,-151.0,0.000199,2]
[373488778,1753020670599,-151.0,0.000199,2]
[373488779,1753020670608,-151.0,0.000199,2]
[373488780,1753020670617,-2107.44728917,0.00019927,2]
[373488781,1753020670626,-2020.02247365,0.0002,2]
[373488782,1753020670636,-14346.20478963,0.0002,2]
[373488783,1753020670645,-3194.4852885,0.0002,2]
[373488784,1753020670655,-362.71658097,0.0002,2]
[373488785,1753020670664,-71021.39958333,0.0002,5]
[373488786,1753020670673,-35692.89985663,0.0002,2]
[373488787,1753020670682,-460.0,0.0002,2]
[373488788,1753020670692,-460.0,0.0002,2]
[373488789,1753020670702,-473.44948089,0.0002,2]
[373488790,1753020670711,-583.95,0.0002,2]
[373488791,1753020670721,-460.0,0.0002,2]
[373488792,1753020670731,-3260.6,0.0002,2]
[373488793,1753020670740,-215.76883166,0.0002,2]
[373488794,1753020670750,-460.0,0.0002,2]
[373488795,1753020670761,-460.0,0.0002,2]
[373488796,1753020670771,-460.0,0.0002,2]
[373488797,1753020670780,-596.35,0.0002,2]
[373488798,1753020670789,-309.42311904,0.0002,2]
[373488799,1753020670799,-460.0,0.0002,2]
[373488800,1753020670809,-460.0,0.0002,2]
[373488801,1753020670819,-460.0,0.0002,2]
[373488802,1753020670828,-460.0,0.0002,2]
[373488803,1753020670840,-460.0,0.0002,2]
[373488804,1753020670850,-460.0,0.0002,2]
[373488805,1753020670860,-1631.12,0.0002,2]
[373488806,1753020670870,-460.0,0.0002,2]
[373488807,1753020670880,-580.97,0.0002,2]
[373488808,1753020670889,-460.0,0.0002,2]
[373488809,1753020670899,-460.0,0.0002,2]
[373488810,1753020670909,-460.0,0.0002,2]
[373488811,1753020670918,-505.08301385,0.0002,2]
[373488812,1753020670928,-460.0,0.0002,2]
[373488813,1753020670938,-460.0,0.0002,2]
[373488814,1753020670948,-624.91,0.0002,2]
[373488815,1753020670964,-460.0,0.0002,2]
[373488816,1753020670974,-460.0,0.0002,2]
[373488817,1753020670983,-460.0,0.0002,2]
[373488818,1753020670993,-704.97,0.0002,2]
[373488819,1753020671003,-460.0,0.0002,2]
[373488820,1753020671015,-460.0,0.0002,2]
[373488821,1753020671027,-1930.36,0.0002,2]
[373488822,1753020671042,-460.0,0.0002,2]
[373488823,1753020671051,-2848.93,0.0002,2]
[373488824,1753020671061,-460.0,0.0002,2]
[373488825,1753020671070,-580.82,0.0002,2]
[373488826,1753020671079,-467.11,0.0002,2]
[373488827,1753020671089,-466.93,0.0002,2]
[373488828,1753020671098,-460.0,0.0002,2]
[373488829,1753020671107,-562.08,0.0002,2]
[373488830,1753020671117,-160.0,0.0002,3]
[373488831,1753020671126,-160.0,0.0002,3]
[373488832,1753020671136,-460.0,0.0002,2]
[373488833,1753020671145,-1389.72,0.0002,2]
[373488834,1753020671154,-489.9,0.0002,2]
[373488835,1753020671163,-460.0,0.0002,2]
[373488836,1753020671172,-588.3,0.0002,2]
[373488837,1753020671181,-460.0,0.0002,2]
[373488838,1753020671190,-460.0,0.0002,2]
[373488839,1753020671199,-786.73,0.0002,2]
[373488840,1753020671208,-1124.57,0.0002,2]
[373488841,1753020671218,-1495.18,0.0002,2]
[373488842,1753020671227,-485.76,0.0002,2]
[373488843,1753020671237,-1962.8,0.0002,2]
[373488844,1753020671246,-460.0,0.0002,2]
[373488845,1753020671255,-460.0,0.0002,2]
[373488846,1753020671265,-574.14,0.0002,2]
[373488847,1753020671275,-460.0,0.0002,2]
[373488848,1753020671284,-1557.18,0.0002,2]
[373488849,1753020671294,-624.15,0.0002,2]
[373488850,1753020671304,-522.82,0.0002,2]
[373488851,1753020671313,-529.99,0.0002,2]
[373488852,1753020671322,-1187.1,0.0002,2]
[373488853,1753020671332,-462.01997114,0.0002,2]
[373488854,1753020671341,-460.0,0.0002,2]
[373488855,1753020671351,-460.0,0.0002,2]
[373488856,1753020671360,-460.0,0.0002,2]
[373488857,1753020671369,-460.0,0.0002,2]
[373488858,1753020671379,-596.16,0.0002,2]
[373488859,1753020671388,-1357.25,0.0002,2]
[373488860,1753020671397,-460.0,0.0002,2]
[373488861,1753020671407,-612.44,0.0002,2]
[373488862,1753020671417,-460.0,0.0002,2]
[373488863,1753020671426,-2100.62,0.0002,2]
[373488864,1753020671435,-2549.97,0.0002,2]
[373488865,1753020671446,-460.0,0.0002,2]
[373488866,1753020671455,-460.0,0.0002,2]
[373488867,1753020671464,-650.64,0.0002,2]
[373488868,1753020671474,-709.69,0.0002,2]
[373488869,1753020671483,-460.0,0.0002,2]
[373488870,1753020671493,-654.51,0.0002,2]
[373488871,1753020671503,-460.0,0.0002,2]
[373488872,1753020671513,-566.01,0.0002,2]
[373488873,1753020671523,-460.0,0.0002,2]
[373488874,1753020671532,-4000.0,0.0002,4]
[373488875,1753020671542,-198.99342437,0.00020066,2]
[373488876,1753020671551,-500.0,0.00020066,2]
[373488877,1753020671561,-500.0,0.00020066,2]
[373488878,1753020671571,-151.0,0.00020066,2]
[373488879,1753020671581,-151.87870992,0.00020066,2]
[373488880,1753020671590,-151.0,0.00020066,2]
[373488881,1753020671599,-151.0,0.00020066,2]
[373488882,1753020671609,-151.0,0.00020066,2]
[373488883,1753020671619,-500.0,0.00020066,2]
[373488884,1753020671628,-500.0,0.00020066,2]
[373488885,1753020671638,-151.0,0.00020066,2]
[373488886,1753020671647,-500.0,0.00020066,2]
[373488887,1753020671657,-152.79228163,0.00020066,2]
[373488888,1753020671667,-464.0,0.00020066,2]
[373488889,1753020671677,-532.26403551,0.00020066,2]
[373488890,1753020671686,-151.0,0.00020066,2]
[373488891,1753020671697,-151.0,0.00020066,2]
[373488892,1753020671707,-247.82111675,0.00020066,2]
[373488893,1753020671716,-151.0,0.00020066,2]
[373488894,1753020671726,-151.0,0.00020066,2]
[373488895,1753020671736,-500.0,0.00020066,2]
[373488896,1753020671745,-5225.68678797,0.00020072,2]
[373488897,1753020671756,-2000.0,0.00020111,2]
[373488898,1753020671770,-560.0,0.00020185,2]
[373488899,1753020671780,-1225.972556,0.00020187,2]
[373488900,1753020671790,-238.89,0.00020193,2]
[373488901,1753020671800,-4744.51029075,0.00020232,2]
[373488902,1753020671809,-500.0,0.00020253,2]
[373488903,1753020671819,-1853.65140565,0.00020273,2]
[373488904,1753020671828,-460.0,0.00020273,2]
[373488905,1753020671841,-224.761876,0.00020273,2]
[373488906,1753020671851,-273.508892,0.00020273,2]
[373488907,1753020671861,-224.761876,0.00020273,2]
[373488908,1753020671870,-151.0,0.00020273,2]
[373488909,1753020671879,-583.95,0.00020273,2]
[373488910,1753020671890,-460.0,0.00020273,2]
[373488911,1753020671899,-151.0,0.00020273,2]
[373488912,1753020671909,-3260.6,0.00020273,2]
[373488913,1753020671919,-258.110964,0.00020273,2]
[373488914,1753020671928,-240.52609319,0.00020273,2]
[373488915,1753020671940,-460.0,0.00020273,2]
[373488916,1753020671949,-596.35,0.00020273,2]
[373488917,1753020671958,-460.0,0.00020273,2]
[373488918,1753020671968,-460.0,0.00020273,2]
[373488919,1753020671978,-460.0,0.00020273,2]
[373488920,1753020671987,-460.0,0.00020273,2]
[373488921,1753020671996,-460.0,0.00020273,2]
[373488922,1753020672006,-460.0,0.00020273,2]
[373488923,1753020672015,-1631.12,0.00020273,2]
[373488924,1753020672025,-460.0,0.00020273,2]
[373488925,1753020672035,-580.97,0.00020273,2]
[373488926,1753020672044,-151.0,0.00020273,2]
[373488927,1753020672053,-151.0,0.00020273,2]
[373488928,1753020672064,-460.0,0.00020273,2]
[373488929,1753020672073,-306.72,0.00020273,2]
[373488930,1753020672083,-460.0,0.00020273,2]
[373488931,1753020672092,-589.52704109,0.00020273,2]
[373488932,1753020672102,-151.0,0.00020273,2]
[373488933,1753020672111,-624.91,0.00020273,2]
[373488934,1753020672121,-151.0,0.00020273,2]
[373488935,1753020672130,-155.942454,0.00020273,2]
[373488936,1753020672140,-460.0,0.00020273,2]
[373488937,1753020672150,-460.0,0.00020273,2]
[373488938,1753020672159,-460.0,0.00020273,2]
[373488939,1753020672168,-704.97,0.00020273,2]
[373488940,1753020672178,-460.0,0.00020273,2]
[373488941,1753020672188,-460.0,0.00020273,2]
[373488942,1753020672198,-1930.36,0.00020273,2]
[373488943,1753020672208,-460.0,0.00020273,2]
[373488944,1753020672218,-2848.93,0.00020273,2]
[373488945,1753020672228,-460.0,0.00020273,2]
[373488946,1753020672238,-580.82,0.00020273,2]
[373488947,1753020672247,-467.11,0.00020273,2]
[373488948,1753020672256,-217.935232,0.00020273,2]
[373488949,1753020672266,-217.935232,0.00020273,2]
[373488950,1753020672276,-466.93,0.00020273,2]
[373488951,1753020672285,-460.0,0.00020273,2]
[373488952,1753020672295,-562.08,0.00020273,2]
[373488953,1753020672304,-460.0,0.00020273,2]
[373488954,1753020672314,-194.185857,0.00020273,2]
[373488955,1753020672323,-194.185857,0.00020273,2]
[373488956,1753020672334,-1389.72,0.00020273,2]
[373488957,1753020672343,-489.9,0.00020273,2]
[373488958,1753020672352,-460.0,0.00020273,2]
[373488959,1753020672362,-588.3,0.00020273,2]
[373488960,1753020672371,-460.0,0.00020273,2]
[373488961,1753020672380,-786.73,0.00020273,2]
[373488962,1753020672389,-460.0,0.00020273,2]
[373488963,1753020672399,-1124.57,0.00020273,2]
[373488964,1753020672409,-1495.18,0.00020273,2]
[373488965,1753020672418,-485.76,0.00020273,2]
[373488966,1753020672525,-569.831812,0.00020273,2]
[373488967,1753020672535,-569.831812,0.00020273,2]
[373488968,1753020672546,-460.0,0.00020273,2]
[373488969,1753020672555,-1962.8,0.00020273,2]
[373488970,1753020672564,-151.0,0.00020273,2]
[373488971,1753020672574,-460.0,0.00020273,2]
[373488972,1753020672584,-298.045214,0.00020273,2]
[373488973,1753020672594,-298.045214,0.00020273,2]
[373488974,1753020672605,-574.14,0.00020273,2]
[373488975,1753020672614,-460.0,0.00020273,2]
[373488976,1753020672624,-151.0,0.00020273,2]
[373488977,1753020672634,-1557.18,0.00020273,2]
[373488978,1753020672643,-624.15,0.00020273,2]
[373488979,1753020672653,-522.82,0.00020273,2]
[373488980,1753020672663,-151.0,0.00020273,2]
[373488981,1753020672672,-529.99,0.00020273,2]
[373488982,1753020672682,-1187.1,0.00020273,2]
[373488983,1753020672694,-151.0,0.00020273,2]
[373488984,1753020672703,-460.0,0.00020273,2]
[373488985,1753020672713,-460.0,0.00020273,2]
[373488986,1753020672722,-460.0,0.00020273,2]
[373488987,1753020672733,-596.16,0.00020273,2]
[373488988,1753020672742,-1357.25,0.00020273,2]
[373488989,1753020672753,-460.0,0.00020273,2]
[373488990,1753020672764,-612.44,0.00020273,2]
[373488991,1753020672774,-460.0,0.00020273,2]
[373488992,1753020672784,-2100.62,0.00020273,2]
[373488993,1753020672795,-2549.97,0.00020273,2]
[373488994,1753020672805,-334.57719461,0.00020273,2]
[373488995,1753020672815,-460.0,0.00020273,2]
[373488996,1753020672825,-650.64,0.00020273,2]
[373488997,1753020672838,-460.0,0.00020273,2]
[373488998,1753020672848,-709.69,0.00020273,2]
[373488999,1753020672858,-654.51,0.00020273,2]
[373489000,1753020672868,-460.0,0.00020273,2]
[373489001,1753020672877,-566.01,0.00020273,2]
[373489002,1753020672887,-460.0,0.00020273,2]
[373489003,1753020672897,-511.01879794,0.00020275,2]
[373489004,1753020672907,-517.94766044,0.00020306,2]
[373489005,1753020672916,-5225.68678797,0.00020314,3]
[373489006,1753020672926,-277.68948773,0.0002034,2]
[373489007,1753020672935,-518.50673032,0.0002034,2]
[373489008,1753020672947,-151.0,0.0002034,2]
[373489009,1753020672956,-151.0,0.0002034,2]
[373489010,1753020672966,-292.0,0.0002034,2]
[373489011,1753020672975,-151.0,0.0002034,2]
[373489012,1753020672986,-500.0,0.0002034,2]
[373489013,1753020672995,-500.0,0.0002034,2]
[373489014,1753020673005,-151.0,0.0002034,2]
[373489015,1753020673015,-500.0,0.0002034,2]
[373489016,1753020673025,-464.0,0.0002034,2]
[373489017,1753020673035,-151.0,0.0002034,2]
[373489018,1753020673045,-500.0,0.0002034,2]
[373489019,1753020673054,-476.42619115,0.000204,3]
[373489020,1753020673064,-12615.16111038,0.000204,3]
[373489021,1753020673073,-160.0,0.000204,3]
[373489022,1753020673083,-214.5637056,0.000204,3]
[373489023,1753020673092,-1000.0,0.00020421,2]
[373489024,1753020673101,-1000.0,0.00020421,2]
[373489025,1753020673111,-500.0,0.00020421,2]
[373489026,1753020673120,-151.0,0.00020421,2]
[373489027,1753020673129,-151.0,0.00020421,2]
[373489028,1753020673139,-425.154817,0.00020421,2]
[373489029,1753020673148,-472.07520401,0.00020431,2]
[373489030,1753020673157,-274.06147548,0.00020431,2]
[373489031,1753020673167,-500.0,0.00020431,2]
[373489032,1753020673177,-158.19723148,0.00020431,2]
[373489033,1753020673187,-500.0,0.00020431,2]
[373489034,1753020673197,-151.18533012,0.00020431,2]
[373489035,1753020673206,-500.0,0.00020431,2]
[373489036,1753020673216,-500.0,0.00020431,2]
[373489037,1753020673226,-158.48796273,0.00020431,2]
[373489038,1753020673236,-152.18081814,0.00020431,2]
[373489039,1753020673246,-500.0,0.00020431,2]
[373489040,1753020673257,-151.0,0.00020452,2]
[373489041,1753020673266,-151.0,0.00020452,2]
[373489042,1753020673276,-151.0,0.00020452,2]
[373489043,1753020673285,-151.0,0.00020452,2]
[373489044,1753020673295,-4148.76559703,0.00020476,2]
[373489045,1753020673304,-3000.0,0.000205,2]
[373489046,1753020673313,-900.186198,0.000205,2]
[373489047,1753020673323,-3000.0,0.0002051,2]
[373489048,1753020673332,-154.410463,0.0002051,2]
[373489049,1753020673342,-258.16249,0.0002051,2]
[373489050,1753020673351,-500.0,0.00020516,2]
[373489051,1753020673361,-3000.0,0.0002052,2]
[373489052,1753020673371,-3000.0,0.0002053,2]
[373489053,1753020673381,-239.84119403,0.00020535,2]
[373489054,1753020673391,-3000.0,0.0002054,2]
[373489055,1753020673400,-583.95,0.00020547,2]
[373489056,1753020673410,-460.0,0.00020547,2]
[373489057,1753020673419,-3260.6,0.00020547,2]
[373489058,1753020673429,-325.6762371,0.00020547,2]
[373489059,1753020673439,-596.35,0.00020547,2]
[373489060,1753020673449,-581.75027151,0.00020547,2]
[373489061,1753020673458,-460.0,0.00020547,2]
[373489062,1753020673470,-460.0,0.00020547,2]
[373489063,1753020673479,-460.0,0.00020547,2]
[373489064,1753020673489,-460.0,0.00020547,2]
[373489065,1753020673498,-460.0,0.00020547,2]
[373489066,1753020673508,-1631.12,0.00020547,2]
[373489067,1753020673517,-460.0,0.00020547,2]
[373489068,1753020673527,-580.97,0.00020547,2]
[373489069,1753020673537,-460.0,0.00020547,2]
[373489070,1753020673546,-460.0,0.00020547,2]
[373489071,1753020673556,-624.91,0.00020547,2]
[373489072,1753020673566,-460.0,0.00020547,2]
[373489073,1753020673589,-593.12973816,0.00020547,2]
[373489074,1753020673600,-460.0,0.00020547,2]
[373489075,1753020673610,-704.97,0.00020547,2]
[373489076,1753020673619,-460.0,0.00020547,2]
[373489077,1753020673630,-460.0,0.00020547,2]
[373489078,1753020673640,-1930.36,0.00020547,2]
[373489079,1753020673649,-460.0,0.00020547,2]
[373489080,1753020673659,-2848.93,0.00020547,2]
[373489081,1753020673670,-580.82,0.00020547,2]
[373489082,1753020673679,-467.11,0.00020547,2]
[373489083,1753020673689,-466.93,0.00020547,2]
[373489084,1753020673699,-460.0,0.00020547,2]
[373489085,1753020673709,-562.08,0.00020547,2]
[373489086,1753020673718,-460.0,0.00020547,2]
[373489087,1753020673727,-489.9,0.00020547,2]
[373489088,1753020673736,-1389.72,0.00020547,2]
[373489089,1753020673746,-460.0,0.00020547,2]
[373489090,1753020673755,-588.3,0.00020547,2]
[373489091,1753020673768,-460.0,0.00020547,2]
[373489092,1753020673778,-786.73,0.00020547,2]
[373489093,1753020673787,-460.0,0.00020547,2]
[373489094,1753020673797,-1124.57,0.00020547,2]
[373489095,1753020673807,-1495.18,0.00020547,2]
[373489096,1753020673816,-485.76,0.00020547,2]
[373489097,1753020673826,-460.0,0.00020547,2]
[373489098,1753020673836,-1962.8,0.00020547,2]
[373489099,1753020673845,-460.0,0.00020547,2]
[373489100,1753020673854,-574.14,0.00020547,2]
[373489101,1753020673864,-460.0,0.00020547,2]
[373489102,1753020673873,-1557.18,0.00020547,2]
[373489103,1753020673883,-624.15,0.00020547,2]
[373489104,1753020673892,-522.82,0.00020547,2]
[373489105,1753020673902,-529.99,0.00020547,2]
[373489106,1753020673911,-1187.1,0.00020547,2]
[373489107,1753020673921,-460.0,0.00020547,2]
[373489108,1753020673930,-460.0,0.00020547,2]
[373489109,1753020673939,-460.0,0.00020547,2]
[373489110,1753020673949,-596.16,0.00020547,2]
[373489111,1753020673959,-1357.25,0.00020547,2]
[373489112,1753020673968,-460.0,0.00020547,2]
[373489113,1753020673978,-612.44,0.00020547,2]
[373489114,1753020673987,-471.94,0.00020547,2]
[373489115,1753020673996,-2100.62,0.00020547,2]
[373489116,1753020674006,-2549.97,0.00020547,2]
[373489117,1753020674016,-460.0,0.00020547,2]
[373489118,1753020674026,-650.64,0.00020547,2]
[373489119,1753020674036,-460.0,0.00020547,2]
[373489120,1753020674046,-709.69,0.00020547,2]
[373489121,1753020674055,-654.51,0.00020547,2]
[373489122,1753020674065,-460.0,0.00020547,2]
[373489123,1753020674074,-566.01,0.00020547,2]
[373489124,1753020674084,-460.0,0.00020547,2]
[373489125,1753020674093,-3000.0,0.0002055,2]
[373489126,1753020674102,-5225.68678797,0.00020555,3]
[373489127,1753020674111,-3000.0,0.0002056,2]
[373489128,1753020674120,-3000.0,0.0002057,2]
[373489129,1753020674129,-3000.0,0.0002058,2]
[373489130,1753020674139,-3000.0,0.0002059,2]
[373489131,1753020674148,-3000.0,0.000206,2]
[373489132,1753020674157,-3000.0,0.0002061,2]
[373489133,1753020674166,-199.784375,0.00020614,2]
[373489134,1753020674175,-500.0,0.00020614,2]
[373489135,1753020674184,-252.36597427,0.00020614,2]
[373489136,1753020674196,-151.0,0.00020614,2]
[373489137,1753020674206,-151.0,0.00020614,2]
[373489138,1753020674215,-464.0,0.00020614,2]
[373489139,1753020674225,-271.86983277,0.00020614,2]
[373489140,1753020674234,-3000.0,0.0002062,2]
[373489141,1753020674243,-2107.44728917,0.00020625,2]
[373489142,1753020674252,-3000.0,0.0002063,2]
[373489143,1753020674261,-3000.0,0.0002064,2]
[373489144,1753020674270,-3000.0,0.0002065,2]
[373489145,1753020674279,-1000.0,0.00020658,2]
[373489146,1753020674289,-3000.0,0.0002066,2]
[373489147,1753020674298,-3000.0,0.0002067,2]
[373489148,1753020674307,-3000.0,0.0002068,2]
[373489149,1753020674316,-3000.0,0.0002069,2]
[373489150,1753020674326,-3000.0,0.000207,2]
[373489151,1753020674335,-3000.0,0.0002071,2]
[373489152,1753020674345,-3000.0,0.0002072,2]
[373489153,1753020674355,-3000.0,0.0002073,2]
[373489154,1753020674364,-262.99041966,0.00020733,2]
[373489155,1753020674374,-3000.0,0.0002074,2]
[373489156,1753020674384,-3000.0,0.0002075,2]
[373489157,1753020674394,-3000.0,0.0002076,2]
[373489158,1753020674403,-3000.0,0.0002077,2]
[373489159,1753020674413,-3000.0,0.0002078,2]
[373489160,1753020674422,-3000.0,0.0002079,2]
[373489161,1753020674432,-5225.68678797,0.00020797,4]
[373489162,1753020674441,-3000.0,0.000208,2]
[373489163,1753020674450,-3000.0,0.0002081,2]
[373489164,1753020674460,-3000.0,0.0002082,2]
[373489165,1753020674469,-583.95,0.00020821,2]
[373489166,1753020674479,-460.0,0.00020821,2]
[373489167,1753020674488,-3260.6,0.00020821,2]
[373489168,1753020674497,-596.35,0.00020821,2]
[373489169,1753020674506,-475.11,0.00020821,2]
[373489170,1753020674516,-460.0,0.00020821,2]
[373489171,1753020674525,-460.0,0.00020821,2]
[373489172,1753020674535,-400.19139532,0.00020821,2]
[373489173,1753020674544,-439.80618325,0.00020821,2]
[373489174,1753020674553,-1631.12,0.00020821,2]
[373489175,1753020674563,-460.0,0.00020821,2]
[373489176,1753020674572,-580.97,0.00020821,2]
[373489177,1753020674582,-460.0,0.00020821,2]
[373489178,1753020674591,-460.0,0.00020821,2]
[373489179,1753020674600,-624.91,0.00020821,2]
[373489180,1753020674610,-460.0,0.00020821,2]
[373489181,1753020674619,-460.0,0.00020821,2]
[373489182,1753020674629,-704.97,0.00020821,2]